bitfinex/quotes_BTCUSD_20250908
["timestamp","ask_amount","ask_price","bid_price","bid_amount"]
[1757361123022,0.001,112070.0,112060.0,0.40045302]
[1757361123513,0.17945989,112070.0,112060.0,0.40045302]
[1757361123747,0.001,112070.0,112060.0,0.40045302]
[1757361131698,0.17945989,112070.0,112060.0,0.25045302]
[1757361131897,0.18246989,112070.0,112060.0,0.25045302]
[1757361132122,0.18246989,112070.0,112060.0,0.40045302]
[1757361132328,0.18246989,112070.0,112060.0,0.25045302]
[1757361132553,0.27438588,112070.0,112060.0,0.40045302]
[1757361133183,0.27438588,112070.0,112060.0,0.25045302]
[1757361133394,0.27438588,112070.0,112060.0,0.40045302]
[1757361134037,0.27438588,112070.0,112060.0,0.07197721]
[1757361134222,0.27639588,112070.0,112060.0,0.40045302]
[1757361134515,0.27639588,112070.0,112060.0,0.22197721]
[1757361135117,0.67763149,112070.0,112060.0,0.22197721]
[1757361135339,0.27639588,112070.0,112060.0,0.22197721]
[1757361140006,0.27438588,112070.0,112060.0,0.22197721]
[1757361140225,0.27639588,112070.0,112060.0,0.22197721]
[1757361140436,0.27639588,112070.0,112060.0,0.07197721]
[1757361140842,0.27639588,112070.0,112060.0,0.22205721]
[1757361142163,0.27639588,112070.0,112060.0,0.07197721]
[1757361142339,0.27639588,112070.0,112060.0,0.22205721]
[1757361142821,0.27438588,112070.0,112060.0,0.22205721]
[1757361143018,0.27137588,112070.0,112060.0,0.22205721]
[1757361143227,0.27438588,112070.0,112060.0,0.22205721]
[1757361143945,0.27438588,112070.0,112060.0,0.22205721]
[1757361144530,0.27438588,112070.0,112060.0,0.40053302]
[1757361144667,0.27438588,112070.0,112060.0,0.22205721]
[1757361145141,0.27438588,112070.0,112060.0,0.40053302]
[1757361145274,0.27137588,112070.0,112060.0,0.40053302]
[1757361145473,0.27438588,112070.0,112060.0,0.22205721]
[1757361146527,0.27438588,112070.0,112060.0,0.40053302]
[1757361146760,0.27137588,112070.0,112060.0,0.22205721]
[1757361146976,0.27438588,112070.0,112060.0,0.22205721]
[1757361147636,0.27438588,112070.0,112060.0,0.40053302]
[1757361148526,0.27438588,112070.0,112060.0,0.22205721]
[1757361150334,0.27438588,112070.0,112060.0,0.40053302]
[1757361150932,0.27137588,112070.0,112060.0,0.40053302]
[1757361151131,0.27438588,112070.0,112060.0,0.40053302]
[1757361151435,0.27438588,112070.0,112060.0,0.40049302]
[1757361152456,0.27438588,112070.0,112060.0,0.22201721]
[1757361152802,0.27639588,112070.0,112060.0,0.22201721]
[1757361153969,0.27639588,112070.0,112060.0,0.40049302]
[1757361154152,0.27639588,112070.0,112060.0,0.22201721]
[1757361158520,0.67763149,112070.0,112060.0,0.07197721]
[1757361158640,0.67763149,112070.0,112060.0,0.22201721]
[1757361159316,0.27639588,112070.0,112060.0,0.22201721]
[1757361160359,1.06920077,112070.0,112060.0,0.07197721]
[1757361160562,1.06920077,112070.0,112060.0,0.22201721]
[1757361161287,0.66696516,112070.0,112060.0,0.22101721]
[1757361161497,1.07717916,112070.0,112060.0,0.22101721]
[1757361161688,1.08017916,112070.0,112060.0,0.22101721]
[1757361162048,1.08017916,112070.0,112060.0,0.22001721]
[1757361162463,1.08117916,112070.0,112060.0,0.22001721]
[1757361162965,1.12158545,112070.0,112060.0,0.22001721]
[1757361163706,1.11260706,112070.0,112060.0,0.22001721]
[1757361164978,0.71137145,112070.0,112060.0,0.22001721]
[1757361165117,1.06986569,112070.0,112060.0,0.22001721]
[1757361166194,0.66863008,112070.0,112060.0,0.22001721]
[1757361166318,1.06986569,112070.0,112060.0,0.22001721]
[1757361167131,1.06103778,112070.0,112060.0,0.22001721]
[1757361169253,1.0699826,112070.0,112060.0,0.22001721]
[1757361170093,1.16189859,112070.0,112060.0,0.22001721]
[1757361170298,1.18868168,112070.0,112060.0,0.22001721]
[1757361170719,1.09676569,112070.0,112060.0,0.22001721]
[1757361180311,0.69553008,112070.0,112060.0,0.22001721]
[1757361180523,1.09676569,112070.0,112060.0,0.22001721]
[1757361182251,1.08782087,112070.0,112060.0,0.22001721]
[1757361183878,1.09683076,112070.0,112060.0,0.22001721]
[1757361184322,0.78751114,112070.0,112060.0,0.22001721]
[1757361184735,1.18874675,112070.0,112060.0,0.22001721]
[1757361187393,0.69559515,112070.0,112060.0,0.22001721]
[1757361187606,1.09683076,112070.0,112060.0,0.22001721]
[1757361188366,1.07004767,112070.0,112060.0,0.22001721]
[1757361191198,1.09683079,112070.0,112060.0,0.22001721]
[1757361192403,1.09694446,112070.0,112060.0,0.22001721]
[1757361192763,1.18886045,112070.0,112060.0,0.22001721]
[1757361193773,1.18886045,112070.0,112060.0,0.06997721]
[1757361194000,1.18886045,112070.0,112060.0,0.21997721]
[1757361197259,1.18886045,112070.0,112060.0,0.06997721]
[1757361197582,1.18886045,112070.0,112060.0,0.21997721]
[1757361197805,1.18886045,112070.0,112060.0,0.06997721]
[1757361197991,1.08793457,112070.0,112060.0,0.21997721]
[1757361198318,0.68658529,112070.0,112060.0,0.21997721]
[1757361198515,1.08793457,112070.0,112060.0,0.21997721]
[1757361200244,1.08793457,112070.0,112060.0,0.00149721]
[1757361200450,1.17985056,112070.0,112060.0,0.15149721]
[1757361200660,1.18891304,112070.0,112060.0,0.15149721]
[1757361202203,1.17985056,112070.0,112060.0,0.15149721]
[1757361202586,1.08793457,112070.0,112060.0,0.15149721]
[1757361203206,0.68658529,112070.0,112060.0,0.15149721]
[1757361203414,1.08793457,112070.0,112060.0,0.15149721]
[1757361203844,0.68658529,112070.0,112060.0,0.15149721]
[1757361204041,1.08793457,112070.0,112060.0,0.15149721]
[1757361204274,1.11662584,112070.0,112060.0,0.15149721]
[1757361204898,1.11662584,112070.0,112060.0,0.22001721]
[1757361206091,1.11662584,112070.0,112060.0,0.07001721]
[1757361206302,1.11662584,112070.0,112060.0,0.22001721]
[1757361209747,0.71527656,112070.0,112060.0,0.22001721]
[1757361209948,0.77662584,112070.0,112060.0,0.22001721]
[1757361211367,1.11662584,112070.0,112060.0,0.22001721]
[1757361213688,0.77662584,112070.0,112060.0,0.22001721]
[1757361213894,1.11662584,112070.0,112060.0,0.22001721]
[1757361216288,0.68658529,112070.0,112060.0,0.22001721]
[1757361216637,1.08793457,112070.0,112060.0,0.22001721]
[1757361218932,0.68658529,112070.0,112060.0,0.22001721]
[1757361219342,1.08793457,112070.0,112060.0,0.22001721]
[1757361219547,0.68658529,112070.0,112060.0,0.22001721]
[1757361219770,1.08793457,112070.0,112060.0,0.22001721]
[1757361220178,1.17985056,112070.0,112060.0,0.22001721]
[1757361224440,1.08793457,112070.0,112060.0,0.22001721]
[1757361236041,0.68658529,112070.0,112060.0,0.22001721]
[1757361236251,0.301159,112070.0,112060.0,0.39849302]
[1757361236465,0.27437588,112070.0,112060.0,0.22001721]
[1757361236702,0.27437588,112070.0,112060.0,0.39849302]
[1757361237244,0.27437588,112070.0,112060.0,0.22001721]
[1757361237456,0.27437588,112070.0,112060.0,0.39849302]
[1757361237669,0.27437588,112070.0,112060.0,0.22001721]
[1757361238687,0.27757588,112070.0,112060.0,0.22001721]
[1757361239726,0.27757588,112070.0,112060.0,0.39849302]
[1757361240246,0.27437588,112070.0,112060.0,0.39849302]
[1757361240731,0.27437588,112070.0,112060.0,0.22001721]
[1757361241036,0.27437588,112070.0,112060.0,0.39849302]
[1757361241247,0.27437588,112070.0,112060.0,0.22001721]
[1757361241505,0.27757588,112070.0,112060.0,0.22001721]
[1757361242662,0.27757588,112070.0,112060.0,0.07001721]
[1757361242880,0.27757588,112070.0,112060.0,0.21993721]
[1757361244355,0.27757588,112070.0,112060.0,0.07001721]
[1757361244774,0.27757588,112070.0,112060.0,0.21993721]
[1757361246417,0.27437588,112070.0,112060.0,0.21993721]
[1757361246906,0.27437588,112070.0,112060.0,0.39841302]
[1757361247096,0.27437588,112070.0,112060.0,0.21993721]
[1757361248106,0.27437588,112070.0,112060.0,0.39841302]
[1757361251275,0.27437588,112070.0,112060.0,0.24849302]
[1757361251493,0.27437588,112070.0,112060.0,0.39837302]
[1757361253446,0.27437588,112070.0,112060.0,0.07001721]
[1757361253720,0.27749588,112070.0,112060.0,0.21989721]
[1757361254242,0.27749588,112070.0,112060.0,0.39837302]
[1757361255403,0.27749588,112070.0,112060.0,0.21989721]
[1757361255757,0.27749588,112070.0,112060.0,0.39837302]
[1757361256347,0.27945588,112070.0,112060.0,0.39837302]
[1757361256561,0.68069006,112070.0,112060.0,0.39837302]
[1757361256771,0.67873006,112070.0,112060.0,0.39837302]
[1757361257196,0.27749588,112070.0,112060.0,0.39837302]
[1757361258538,0.27945588,112070.0,112060.0,0.39837302]
[1757361260342,0.68069006,112070.0,112060.0,0.39837302]
[1757361260537,0.27945588,112070.0,112060.0,0.39837302]
[1757361261767,0.27749588,112070.0,112060.0,0.39837302]
[1757361263550,0.27945588,112070.0,112060.0,0.39837302]
[1757361264359,0.27945588,112070.0,112060.0,0.21989721]
[1757361264699,0.68069006,112070.0,112060.0,0.21989721]
[1757361264874,0.68069006,112070.0,112060.0,0.39837302]
[1757361265075,0.68069006,112070.0,112060.0,0.21989721]
[1757361265276,0.68069006,112070.0,112060.0,0.39837302]
[1757361266514,0.27945588,112070.0,112060.0,0.39837302]
[1757361267229,0.27945588,112070.0,112060.0,0.21989721]
[1757361267436,0.27945588,112070.0,112060.0,0.39837302]
[1757361268269,0.27749588,112070.0,112060.0,0.39837302]
[1757361269872,0.27945588,112070.0,112060.0,0.39837302]
[1757361270264,0.27945588,112070.0,112060.0,0.07001721]
[1757361270505,0.68069006,112070.0,112060.0,0.22124461]
[1757361270725,0.68069006,112070.0,112060.0,0.21985721]
[1757361272058,0.68069006,112070.0,112060.0,0.39833302]
[1757361272270,0.68069006,112070.0,112060.0,0.21985721]
[1757361273360,0.68069006,112070.0,112060.0,0.07001721]
[1757361273512,0.68069006,112070.0,112060.0,0.21981721]
[1757361274358,0.70746964,112070.0,112060.0,0.07001721]
[1757361274580,0.79938563,112070.0,112060.0,0.21981721]
[1757361275033,0.70746964,112070.0,112060.0,0.21981721]
[1757361275236,0.30623546,112070.0,112060.0,0.21981721]
[1757361275443,0.70746964,112070.0,112060.0,0.21981721]
[1757361275848,0.30623546,112070.0,112060.0,0.21981721]
[1757361276060,0.70746964,112070.0,112060.0,0.21981721]
[1757361276487,0.74754282,112070.0,112060.0,0.21981721]
[1757361280182,0.8294201,112070.0,112060.0,0.21981721]
[1757361280386,0.74754282,112070.0,112060.0,0.21981721]
[1757361283724,0.34630864,112070.0,112060.0,0.21981721]
[1757361283937,0.74754282,112070.0,112060.0,0.21981721]
[1757361290548,0.34630864,112070.0,112060.0,0.21981721]
[1757361290763,0.74754282,112070.0,112060.0,0.21981721]
[1757361293171,0.83462627,112070.0,112060.0,0.21981721]
[1757361293887,0.74754282,112070.0,112060.0,0.21981721]
[1757361294943,0.34630864,112070.0,112060.0,0.21981721]
[1757361295180,0.74754282,112070.0,112060.0,0.21981721]
[1757361296790,0.34630864,112070.0,112060.0,0.21981721]
[1757361297165,0.74754282,112070.0,112060.0,0.21981721]
[1757361300296,0.34630864,112070.0,112060.0,0.00149721]
[1757361300500,0.34630864,112070.0,112060.0,0.15125721]
[1757361300705,1.50971582,112070.0,112060.0,0.15125721]
[1757361301364,1.10848164,112070.0,112060.0,0.15125721]
[1757361303054,0.70724746,112070.0,112060.0,0.15125721]
[1757361303261,1.10848164,112070.0,112060.0,0.15125721]
[1757361303696,1.10848164,112070.0,112060.0,0.21977721]
[1757361304233,1.20039763,112070.0,112060.0,0.21977721]
[1757361304997,0.79916345,112070.0,112060.0,0.21977721]
[1757361305201,1.20039763,112070.0,112060.0,0.21977721]
[1757361306389,0.70724746,112070.0,112060.0,0.21977721]
[1757361306649,0.68630864,112070.0,112060.0,0.21977721]
[1757361306879,0.34434864,112070.0,112060.0,0.21977721]
[1757361307102,0.12269557,112070.0,112060.0,0.39825302]
[1757361307338,0.004,112070.0,112060.0,0.39825302]
[1757361307562,0.18245989,112070.0,112060.0,0.39825302]
[1757361308446,0.004,112070.0,112060.0,0.39825302]
[1757361309272,0.18245989,112070.0,112060.0,0.39825302]
[1757361309688,0.18245989,112070.0,112060.0,0.07001721]
[1757361309887,0.18569989,112070.0,112060.0,0.21973721]
[1757361310933,0.27972588,112070.0,112060.0,0.21973721]
[1757361311575,0.27972588,112070.0,112060.0,0.07001721]
[1757361311747,0.27972588,112070.0,112060.0,0.21973721]
[1757361314629,0.68098808,112070.0,112060.0,0.21973721]
[1757361315235,0.27972588,112070.0,112060.0,0.21973721]
[1757361315653,0.27972588,112070.0,112060.0,0.07001721]
[1757361315856,0.27972588,112070.0,112060.0,0.21973721]
[1757361316543,0.27761588,112070.0,112060.0,0.21973721]
[1757361316965,0.27972588,112070.0,112060.0,0.21973721]
[1757361319243,0.27972588,112070.0,112060.0,0.07001721]
[1757361319451,0.27972588,112070.0,112060.0,0.21973721]
[1757361322251,0.31968669,112070.0,112060.0,0.21973721]
[1757361324549,0.72094889,112070.0,112060.0,0.21973721]
[1757361324752,0.73718974,112070.0,112060.0,0.07001721]
[1757361324958,0.73718974,112070.0,112060.0,0.21973721]
[1757361326218,1.07718974,112070.0,112060.0,0.07001721]
[1757361326437,1.07718974,112070.0,112060.0,0.21973721]
[1757361328080,1.06094889,112070.0,112060.0,0.21973721]
[1757361332665,0.65968669,112070.0,112060.0,0.21973721]
[1757361332880,1.06094889,112070.0,112060.0,0.21973721]
[1757361344824,0.65968669,112070.0,112060.0,0.21973721]
[1757361345031,1.06094889,112070.0,112060.0,0.21973721]
[1757361346262,1.1198066,112070.0,112060.0,0.21973721]
[1757361346971,0.65968669,112070.0,112060.0,0.21973721]
[1757361347176,1.06094889,112070.0,112060.0,0.21973721]
[1757361352424,0.65968669,112070.0,112060.0,0.21973721]
[1757361352628,1.06094889,112070.0,112060.0,0.21973721]
[1757361353698,0.65968669,112070.0,112060.0,0.21973721]
[1757361353903,1.06094889,112070.0,112060.0,0.21973721]
[1757361354110,0.65968669,112070.0,112060.0,0.21973721]
[1757361354549,1.06094889,112070.0,112060.0,0.21973721]
[1757361358616,0.65968669,112070.0,112060.0,0.21973721]
[1757361358815,1.06094889,112070.0,112060.0,0.21973721]
[1757361362955,1.06094889,112070.0,112060.0,0.07001721]
[1757361363162,1.15286488,112070.0,112060.0,0.21965721]
[1757361364823,1.06094889,112070.0,112060.0,0.21965721]
[1757361365869,0.65968669,112070.0,112060.0,0.21965721]
[1757361366052,1.06094889,112070.0,112060.0,0.21965721]
[1757361370189,0.65968669,112070.0,112060.0,0.21965721]
[1757361370374,1.06094889,112070.0,112060.0,0.21965721]
[1757361371600,1.08773124,112070.0,112060.0,0.21965721]
[1757361371751,0.68646904,112070.0,112060.0,0.21965721]
[1757361371951,1.08773124,112070.0,112060.0,0.21965721]
[1757361372922,1.08773124,112070.0,112060.0,0.07001721]
[1757361372923,1.17964723,112070.0,112060.0,0.07001721]
[1757361373128,1.17964723,112070.0,112060.0,0.21965721]
[1757361374463,1.17972646,112070.0,112060.0,0.21965721]
[1757361376089,1.08781047,112070.0,112060.0,0.21830301]
[1757361383565,1.08781047,112070.0,112060.0,0.06866301]
[1757361383704,1.08781047,112070.0,112060.0,0.21830301]
[1757361384083,1.08781047,112070.0,112060.0,0.06866301]
[1757361384271,1.08781047,112070.0,112060.0,0.21830301]
[1757361384413,1.17972646,112070.0,112060.0,0.21830301]
[1757361384621,1.17972646,112070.0,112060.0,0.06866301]
[1757361384825,1.17972646,112070.0,112060.0,0.21830301]
[1757361385170,1.17972646,112070.0,112060.0,0.06866301]
[1757361385373,1.17972646,112070.0,112060.0,0.21830301]
[1757361385871,1.17972646,112070.0,112060.0,0.06866301]
[1757361386012,1.17972646,112070.0,112060.0,0.21830301]
[1757361388185,1.17972646,112070.0,112060.0,0.06866301]
[1757361388389,1.17972646,112070.0,112060.0,0.21830301]
[1757361400957,0.77838503,112070.0,112060.0,0.21830301]
[1757361401099,1.17972646,112070.0,112060.0,0.21830301]
[1757361404313,0.77838503,112070.0,112060.0,0.21830301]
[1757361404525,1.17972646,112070.0,112060.0,0.21830301]
[1757361406267,1.17972646,112070.0,112060.0,0.06866301]
[1757361406492,1.17972646,112070.0,112060.0,0.21826301]
[1757361406921,0.77838503,112070.0,112060.0,0.21826301]
[1757361407199,1.17972646,112070.0,112060.0,0.21826301]
[1757361420020,0.77838503,112070.0,112060.0,0.21826301]
[1757361420214,1.17972646,112070.0,112060.0,0.21826301]
[1757361422956,1.17972646,112070.0,112060.0,0.06866301]
[1757361423162,1.17972646,112070.0,112060.0,0.21822301]
[1757361423396,1.60200671,112070.0,112060.0,0.06866301]
[1757361423595,1.60200671,112070.0,112050.0,0.0112]
[1757361423596,0.17847581,112060.0,112050.0,0.0112]
[1757361423828,0.36093882,112040.0,112030.0,0.0002]
[1757361424049,1.34214528,112030.0,112020.0,0.0868]
[1757361424292,1.43941127,112030.0,112020.0,0.0868]
[1757361424541,1.50224137,112030.0,112020.0,0.0868]
[1757361424785,1.52903722,112030.0,112020.0,0.0868]
[1757361425026,1.62983488,112030.0,112020.0,0.0868]
[1757361425237,1.62983488,112030.0,112020.0,0.0002]
[1757361425446,1.62983488,112030.0,112020.0,0.14976]
[1757361425650,1.64652953,112030.0,112020.0,0.14976]
[1757361425831,1.65052953,112030.0,112020.0,0.14976]
[1757361425993,1.65152953,112030.0,112020.0,0.14976]
[1757361426206,1.63488115,112030.0,112020.0,0.14976]
[1757361426414,1.6515134,112030.0,112020.0,0.14976]
[1757361426817,1.68029199,112030.0,112020.0,0.14976]
[1757361427023,1.82985199,112030.0,112020.0,0.0002]
[1757361427222,1.81321974,112030.0,112020.0,0.0002]
[1757361427419,1.66365974,112030.0,112020.0,0.0002]
[1757361427686,1.81321974,112030.0,112020.0,0.0002]
[1757361427842,1.63488115,112030.0,112020.0,0.0002]
[1757361430020,1.78444115,112030.0,112020.0,0.0002]
[1757361430222,1.80103641,112030.0,112020.0,0.0002]
[1757361430867,0.84879355,112030.0,112020.0,0.0002]
[1757361431078,1.22701498,112030.0,112020.0,0.0002]
[1757361431855,1.77791641,112030.0,112020.0,0.0002]
[1757361432056,1.80106641,112030.0,112020.0,0.0002]
[1757361433350,0.53947836,112020.0,112010.0,1e-08]
[1757361433552,2.14320441,112020.0,112010.0,1e-08]
[1757361433769,2.14528441,112020.0,112010.0,1e-08]
[1757361434013,2.14844441,112020.0,112010.0,1e-08]
[1757361434436,1.74821212,112020.0,112010.0,1e-08]
[1757361434658,1.77501338,112020.0,112010.0,1e-08]
[1757361435104,1.77701338,112020.0,112010.0,1e-08]
[1757361435322,1.78201338,112020.0,112010.0,1e-08]
[1757361438519,1.78201338,112020.0,111970.0,0.2144]
[1757361438520,0.17861927,111970.0,111960.0,0.07061212]
[1757361438761,0.27332618,111970.0,111960.0,0.28873212]
[1757361438937,0.27053526,111970.0,111960.0,0.28873212]
[1757361439139,0.27577526,111970.0,111960.0,0.21812]
[1757361439577,0.27053526,111970.0,111960.0,0.39675522]
[1757361439779,0.27053526,111970.0,111960.0,0.21812]
[1757361439997,0.27058149,111970.0,111960.0,0.21812]
[1757361440188,0.27058149,111970.0,111960.0,0.22112]
[1757361441060,0.27258149,111970.0,111960.0,0.21812]
[1757361441250,0.27058149,111970.0,111960.0,0.22112]
[1757361441685,0.27158149,111970.0,111960.0,0.21812]
[1757361441894,0.27158149,111970.0,111960.0,0.39675522]
[1757361442066,0.27158149,111970.0,111960.0,0.39875522]
[1757361442292,0.00104623,111970.0,111960.0,0.39875522]
[1757361447937,0.1796655,111970.0,111960.0,0.39875522]
[1757361448202,0.00104623,111970.0,111960.0,0.39875522]
[1757361449173,0.1796655,111970.0,111960.0,0.39875522]
[1757361449569,0.1796655,111970.0,111960.0,0.24915522]
[1757361449796,0.1796655,111970.0,111960.0,0.39875522]
[1757361450296,0.00104623,111970.0,111960.0,0.39875522]
[1757361450829,0.1796655,111970.0,111960.0,0.39875522]
[1757361451162,0.19625812,111970.0,111960.0,0.39875522]
[1757361451839,0.01763885,111970.0,111960.0,0.39875522]
[1757361452520,0.00104623,111970.0,111960.0,0.61270522]
[1757361452696,0.00104623,111970.0,111960.0,0.85422121]
[1757361452958,0.00104623,111970.0,111960.0,1.25422121]
[1757361453369,0.00104623,111970.0,111960.0,1.25222121]
[1757361453576,0.00204623,111970.0,111960.0,1.25622121]
[1757361453770,0.00104623,111970.0,111960.0,1.25622121]
[1757361453975,0.00204623,111970.0,111960.0,1.25822121]
[1757361454301,0.00204623,111970.0,111960.0,1.10862121]
[1757361454550,0.00204623,111970.0,111960.0,1.25822121]
[1757361461676,0.00204623,111970.0,111960.0,1.32226472]
[1757361463628,0.00204623,111970.0,111960.0,0.92226472]
[1757361467317,0.00204623,111970.0,111960.0,0.77266472]
[1757361467497,0.00204623,111970.0,111960.0,0.92222472]
[1757361467747,0.00204623,111970.0,111960.0,1.32222472]
[1757361469081,0.00204623,111970.0,111960.0,1.17266472]
[1757361469257,0.00204623,111970.0,111960.0,1.32222472]
[1757361475310,0.00204623,111970.0,111960.0,1.34007472]
[1757361475491,0.00204623,111970.0,111960.0,1.25818121]
[1757361477306,0.00204623,111970.0,111960.0,1.35210121]
[1757361477496,0.00204623,111970.0,111960.0,1.25818121]
[1757361477701,0.00204623,111970.0,111960.0,1.33840727]
[1757361480383,0.00204623,111970.0,111960.0,1.18884727]
[1757361480784,0.00204623,111970.0,111960.0,1.33836727]
[1757361481722,0.00204623,111970.0,111960.0,1.55260727]
[1757361482328,0.00204623,111970.0,111960.0,1.40308727]
[1757361482532,0.00204623,111970.0,111960.0,1.47238121]
[1757361482744,0.00204623,111970.0,111960.0,0.83094522]
[1757361482949,0.00204623,111970.0,111960.0,1.06080689]
[1757361491669,0.00204623,111970.0,111960.0,1.08760388]
[1757361492450,0.00204623,111970.0,111960.0,1.06405388]
[1757361499118,0.00034972,111970.0,111960.0,1.17928987]
[1757361499327,0.00034972,111970.0,111960.0,1.61126469]
[1757361499766,0.00034972,111970.0,111960.0,1.66126469]
[1757361499998,0.00034972,111970.0,111960.0,1.86126469]
[1757361500216,0.00034972,111970.0,111960.0,1.88220351]
[1757361500840,0.24917054,112010.0,112000.0,0.17857142]
[1757361501054,0.16257444,112010.0,112000.0,0.39804181]
[1757361501284,4.633e-05,112010.0,112000.0,0.39665142]
[1757361501494,4.633e-05,112010.0,112000.0,0.46088526]
[1757361502346,4.633e-05,112010.0,112000.0,0.46188526]
[1757361503513,0.00604633,112010.0,112000.0,0.46188526]
[1757361503919,0.00604633,112010.0,112000.0,0.46288526]
[1757361504276,4.633e-05,112010.0,112000.0,0.46188526]
[1757361504675,0.00204633,112010.0,112000.0,0.46288526]
[1757361504884,0.00204633,112010.0,112000.0,0.4716123]
[1757361505098,0.00204633,112010.0,112000.0,0.3220923]
[1757361505305,0.00204633,112010.0,112000.0,0.40737846]
[1757361507573,0.00204633,112010.0,112000.0,0.62161846]
[1757361507993,0.00204633,112010.0,112000.0,0.62026366]
[1757361517846,0.2778178,112010.0,112000.0,0.2848]
[1757361518058,0.2778178,112010.0,112000.0,0.43428]
[1757361518268,0.2778178,112010.0,112000.0,0.2848]
[1757361518480,0.2778178,112010.0,112000.0,0.43428]
[1757361519103,0.71166008,112010.0,112000.0,0.2848]
[1757361519306,0.67960227,112010.0,112000.0,0.21904]
[1757361519519,0.2758178,112010.0,112000.0,0.21804]
[1757361519933,0.68660227,112010.0,112000.0,0.21904]
[1757361520273,0.68660227,112010.0,112000.0,0.22004]
[1757361520493,0.2848178,112010.0,112000.0,0.22004]
[1757361520759,0.2848178,112010.0,112000.0,0.21904]
[1757361520969,0.2868178,112010.0,112000.0,0.21904]
[1757361521402,0.31361262,112010.0,112000.0,0.21904]
[1757361522234,0.71539709,112010.0,112000.0,0.21904]
[1757361526772,1.20909755,112010.0,112000.0,0.06956]
[1757361526989,0.71539709,112010.0,112000.0,0.21904]
[1757361528360,0.75653577,112010.0,112000.0,0.21904]
[1757361530712,0.3547513,112010.0,112000.0,0.21904]
[1757361530922,0.30831262,112010.0,112000.0,0.39761142]
[1757361531333,0.2815178,112010.0,112000.0,0.39761142]
[1757361537161,0.10296232,112010.0,112000.0,0.39761142]
[1757361537377,0.01104633,112010.0,112000.0,0.39761142]
[1757361540416,0.01104633,112010.0,112000.0,0.76221142]
[1757361540628,0.01104633,112010.0,112000.0,1.34514711]
[1757361540840,0.01104633,112010.0,112000.0,1.38222439]
[1757361541042,0.00191635,112010.0,112000.0,1.30193209]
[1757361541282,0.25802844,112050.0,112010.0,0.51851673]
[1757361541494,0.47239659,112030.0,112020.0,0.32809954]
[1757361541751,0.74785618,112030.0,112020.0,0.39669954]
[1757361542189,0.74785618,112030.0,112020.0,0.24705954]
[1757361542398,0.27545959,112030.0,112020.0,0.39673954]
[1757361542640,0.67724406,112030.0,112020.0,0.39673954]
[1757361543792,0.27545959,112030.0,112020.0,0.39673954]
[1757361544030,0.68024406,112030.0,112020.0,0.21816]
[1757361544451,0.68124406,112030.0,112020.0,0.21816]
[1757361546284,0.27945959,112030.0,112020.0,0.21816]
[1757361546504,0.27747959,112030.0,112020.0,0.39669954]
[1757361546730,0.67926406,112030.0,112020.0,0.39669954]
[1757361546969,0.09591599,112030.0,112020.0,0.39669954]
[1757361547195,0.27747959,112030.0,112020.0,0.39669954]
[1757361547422,0.27443959,112030.0,112020.0,0.39669954]
[1757361548115,0.27443959,112030.0,112020.0,0.24705954]
[1757361548340,0.68124406,112030.0,112020.0,0.2182]
[1757361548590,0.68124406,112030.0,112020.0,0.06852]
[1757361548848,0.68124406,112030.0,112020.0,0.21828]
[1757361550231,0.72194581,112030.0,112020.0,0.06852]
[1757361550459,0.72194581,112030.0,112020.0,0.2184]
[1757361550731,0.32016134,112030.0,112020.0,0.21836]
[1757361550916,0.72194581,112030.0,112020.0,0.21836]
[1757361553436,0.32016134,112030.0,112020.0,0.21836]
[1757361553700,0.27443959,112030.0,112020.0,0.39689954]
[1757361554082,0.27768959,112030.0,112020.0,0.39689954]
[1757361555539,0.27970959,112030.0,112020.0,0.21836]
[1757361555951,0.68149406,112030.0,112020.0,0.21836]
[1757361556475,0.27970959,112030.0,112020.0,0.21836]
[1757361557077,0.68126981,112030.0,112020.0,0.06852]
[1757361557285,0.68126981,112030.0,112020.0,0.21856]
[1757361557490,0.27970959,112030.0,112020.0,0.21856]
[1757361558131,0.68126981,112030.0,112020.0,0.06852]
[1757361558367,0.68126981,112030.0,112020.0,0.21856]
[1757361561299,0.27970959,112030.0,112020.0,0.21856]
[1757361564050,0.68126981,112030.0,112020.0,0.21856]
[1757361564251,0.72196755,112030.0,112020.0,0.21856]
[1757361564654,0.32040733,112030.0,112020.0,0.21856]
[1757361564861,0.72196755,112030.0,112020.0,0.21856]
[1757361565316,0.32040733,112030.0,112020.0,0.21856]
[1757361565514,0.72196755,112030.0,112020.0,0.21856]
[1757361567335,0.72196755,112030.0,112020.0,0.06852]
[1757361567551,0.72196755,112030.0,112020.0,0.21852]
[1757361567749,0.72196755,112030.0,112020.0,0.06852]
[1757361567955,0.72196755,112030.0,112020.0,0.21852]
[1757361569369,0.32040733,112030.0,112020.0,0.21852]
[1757361570192,0.27970959,112030.0,112020.0,0.39705954]
[1757361570412,0.09591599,112030.0,112020.0,0.39705954]
[1757361570615,0.004,112030.0,112020.0,0.39705954]
[1757361572359,0.004,112030.0,112020.0,0.4611263]
[1757361573351,0.003,112030.0,112020.0,0.45997221]
[1757361573562,0.003,112030.0,112020.0,0.45993221]
[1757361573831,0.18175788,112040.0,112030.0,0.1785236]
[1757361573832,0.00325,112040.0,112030.0,0.1785236]
[1757361574492,0.00527,112040.0,112030.0,0.1785236]
[1757361575154,0.00325,112040.0,112030.0,0.1785236]
[1757361575775,0.00727,112040.0,112030.0,0.1785236]
[1757361576212,0.00827,112040.0,112030.0,0.1785236]
[1757361576765,0.00625,112040.0,112030.0,0.1785236]
[1757361578277,0.003,112040.0,112030.0,0.17991249]
[1757361581351,0.003,112040.0,112030.0,0.32999249]
[1757361581571,0.003,112040.0,112030.0,0.3286436]
[1757361581781,0.003,112040.0,112030.0,0.1785236]
[1757361581979,0.003,112040.0,112030.0,0.3286436]
[1757361585478,0.003,112040.0,112030.0,0.84914635]
[1757361586087,0.002,112040.0,112030.0,0.84914635]
[1757361586526,0.00013896,112050.0,112040.0,0.51850767]
[1757361587121,0.00013896,112050.0,112040.0,0.5273705]
[1757361588000,0.00013896,112050.0,112040.0,0.6778505]
[1757361588441,0.00013896,112050.0,112040.0,0.74191726]
[1757361588885,0.00013896,112050.0,112040.0,0.74391726]
[1757361589066,0.00013896,112050.0,112040.0,0.6798505]
[1757361590685,0.00013896,112050.0,112040.0,0.5293705]
[1757361590887,0.00013896,112050.0,112040.0,0.6799705]
[1757361591873,0.00013896,112050.0,112040.0,0.52050767]
[1757361592074,0.00013896,112050.0,112040.0,0.33106767]
[1757361592075,0.00324896,112050.0,112040.0,0.33106767]
[1757361592246,0.00013896,112050.0,112040.0,0.33106767]
[1757361592866,0.00538896,112050.0,112040.0,0.33106767]
[1757361593100,0.00013896,112050.0,112040.0,0.33106767]
[1757361593303,0.00013896,112050.0,112040.0,0.33989589]
[1757361594067,0.00013896,112050.0,112040.0,0.33106767]
[1757361594279,0.67735691,112050.0,112040.0,0.002]
[1757361594537,0.09730495,112050.0,112040.0,0.33102767]
[1757361594771,0.27579669,112050.0,112040.0,0.33102767]
[1757361595402,0.76294027,112050.0,112040.0,0.002]
[1757361595623,0.67735691,112050.0,112040.0,0.002]